bitfinex-derivatives/quotes_BNBF0:USTF0_20250303
["timestamp","ask_amount","ask_price","bid_price","bid_amount"]
[1740961300897,0.61630166,623.07,621.59,0.32175549]
[1740961301101,1.197,623.33,621.59,0.32175549]
[1740961301102,0.32099637,623.06,621.59,0.32175549]
[1740961301500,0.29535056,623.05,621.59,0.32175549]
[1740961305696,0.32099637,623.06,621.59,0.32175549]
[1740961306601,0.29524272,623.05,621.59,0.32175549]
[1740961307398,0.32099637,623.06,621.59,0.32175549]
[1740961307599,0.29523289,623.05,621.59,0.32175549]
[1740961308404,0.32099637,623.06,621.59,0.32175549]
[1740961309204,0.29521949,623.05,621.59,0.32175549]
[1740961310706,0.32099637,623.06,621.59,0.32175549]
[1740961310902,0.29524601,623.05,621.59,0.32175549]
[1740961311301,1.042,623.04,621.59,0.32175549]
[1740961311505,0.29524601,623.03,621.59,0.32175549]
[1740961312409,0.205,623.02,621.59,0.32175549]
[1740961312600,0.29524601,623.01,621.59,0.32175549]
[1740961313106,0.205,623.02,621.59,0.32175549]
[1740961313408,0.29524906,623.01,621.59,0.32175549]
[1740961315812,0.205,623.02,621.59,0.32175549]
[1740961316006,0.29521939,623.01,621.59,0.32175549]
[1740961316401,0.205,623.02,621.59,0.32175549]
[1740961320209,1.974,623.01,621.59,0.32175549]
[1740961322416,1.305,623.0,621.59,0.32175549]
[1740961323417,1.305,623.0,621.6,1.189564]
[1740961323809,1.305,623.0,621.62,0.32173996]
[1740961327719,1.23,622.99,621.62,0.32173996]
[1740961334721,1.03,622.98,621.62,0.32173996]
[1740961339529,0.205,622.97,621.62,0.32173996]
[1740961341830,1.335,622.96,621.62,0.32173996]
[1740961342537,1.122,622.95,621.62,0.32173996]
[1740961343336,0.29522707,622.94,621.62,0.32173996]
[1740961346041,0.29524006,622.93,621.62,0.32173996]
[1740961346241,0.29524006,622.94,621.62,0.32173996]
[1740961346443,1.313,622.92,621.62,0.32173996]
[1740961346642,0.29524006,622.91,621.62,0.32173996]
[1740961347742,0.29523455,622.9,621.62,0.32173996]
[1740961347944,0.29523455,622.91,621.62,0.32173996]
[1740961348143,1.313,622.92,621.62,0.32173996]
[1740961348144,0.29523455,622.9,621.62,0.32173996]
[1740961348443,0.29523455,622.89,621.62,0.32173996]
[1740961348642,1.313,622.92,621.62,0.32173996]
[1740961348643,0.29523455,622.91,621.62,0.32173996]
[1740961348842,0.29523455,622.9,621.62,0.32173996]
[1740961349043,0.29523455,622.91,621.62,0.32173996]
[1740961351945,1.059,622.9,621.62,0.32173996]
[1740961352143,0.29523455,622.89,621.62,0.32173996]
[1740961361050,0.205,622.88,621.62,0.32173996]
[1740961361350,0.29523455,622.87,621.62,0.32173996]
[1740961364550,0.205,622.88,621.62,0.32173996]
[1740961365749,1.335,622.87,621.62,0.32173996]
[1740961365954,2.574,622.87,621.62,0.32173996]
[1740961367156,0.914,622.86,621.62,0.32173996]
[1740961369850,0.914,622.86,621.18,1.189564]
[1740961371353,0.914,622.86,621.13,1.189564]
[1740961373558,0.914,622.86,620.47,2.41691759]
[1740961373559,0.914,622.86,620.79,1.189564]
[1740961373857,1.296,622.85,620.79,1.189564]
[1740961376049,0.955,622.84,620.91,1.189564]
[1740961376749,0.2953623,622.83,620.91,1.189564]
[1740961377555,0.955,622.84,620.91,1.189564]
[1740961378152,0.29531543,622.83,621.05,1.189564]
[1740961380756,0.955,622.84,621.05,1.189564]
[1740961380953,1.211,622.83,621.05,1.189564]
[1740961381553,1.211,622.83,621.42,1.189564]
[1740961383964,1.211,622.83,621.31,1.189564]
[1740961386059,1.416,622.83,621.31,1.189564]
[1740961386663,1.416,622.83,621.19,1.189564]
[1740961387565,0.29527786,622.82,621.19,1.189564]
[1740961388364,1.31927786,622.82,621.19,1.189564]
[1740961388582,1.024,622.82,621.19,1.189564]
[1740961389367,1.024,622.82,621.49,1.189564]
[1740961389964,1.902,622.82,621.49,1.189564]
[1740961391868,1.902,622.82,621.43,1.189564]
[1740961392662,1.902,622.82,621.45,0.32182798]
[1740961393367,0.29531819,622.81,621.45,0.32182798]
[1740961394768,1.902,622.82,621.45,0.32182798]
[1740961394963,0.29534434,622.81,621.45,0.32182798]
[1740961396771,1.902,622.82,621.45,0.32182798]
[1740961398070,0.29529365,622.81,621.45,0.32182798]
[1740961399073,1.902,622.82,621.45,0.32182798]
[1740961399375,0.29526721,622.81,621.45,0.32182798]
[1740961401177,0.205,622.8,621.45,0.32182798]
[1740961401474,0.29526721,622.79,621.45,0.32182798]
[1740961404273,1.06,622.78,621.45,0.32182798]
[1740961404474,0.29526721,622.77,621.45,0.32182798]
[1740961405777,1.137,622.76,621.45,0.32182798]
[1740961405978,0.29526721,622.75,621.45,0.32182798]
[1740961407781,1.137,622.76,621.45,0.32182798]
[1740961407983,0.29535575,622.75,621.45,0.32182798]
[1740961409982,1.095,622.74,621.45,0.32182798]
[1740961410180,0.29535575,622.73,621.45,0.32182798]
[1740961411177,0.983,622.72,621.45,0.32182798]
[1740961411382,0.29535575,622.71,621.45,0.32182798]
[1740961413187,1.123,622.7,621.45,0.32182798]
[1740961413386,0.29535575,622.69,621.45,0.32182798]
[1740961415993,0.29553901,622.68,621.45,0.32182798]
[1740961416295,0.29553901,622.67,621.45,0.32182798]
[1740961416497,0.29553901,622.66,621.45,0.32182798]
[1740961416793,0.29553901,622.65,621.45,0.32182798]
[1740961416990,0.29553901,622.64,621.45,0.32182798]
[1740961417194,1.123,622.7,621.45,0.32182798]
[1740961417195,0.29553901,622.63,621.45,0.32182798]
[1740961417495,0.29553901,622.62,621.45,0.32182798]
[1740961417694,0.29553901,622.61,621.45,0.32182798]
[1740961417896,0.29553901,622.6,621.45,0.32182798]
[1740961418091,0.29553901,622.59,621.45,0.32182798]
[1740961418297,0.29553901,622.58,621.45,0.32182798]
[1740961418494,0.29553901,622.57,621.45,0.32182798]
[1740961418698,0.29553901,622.56,621.45,0.32182798]
[1740961418898,0.29553901,622.55,621.45,0.32182798]
[1740961419100,0.29553901,622.54,621.45,0.32182798]
[1740961419301,0.29561321,622.53,621.45,0.32182798]
[1740961419601,0.29561321,622.52,621.45,0.32182798]
[1740961419800,0.29561321,622.51,621.45,0.32182798]
[1740961420002,0.29561321,622.5,621.45,0.32182798]
[1740961420203,0.29561321,622.69,621.45,0.32182798]
[1740961420795,1.123,622.7,621.45,0.32182798]
[1740961420996,0.29558516,622.69,621.45,0.32182798]
[1740961421498,0.29558516,622.68,621.45,0.32182798]
[1740961422504,1.06,622.69,621.45,0.32182798]
[1740961422702,0.29556931,622.68,621.45,0.32182798]
[1740961423303,0.29556931,622.67,621.45,0.32182798]
[1740961423502,0.29556931,622.66,621.45,0.32182798]
[1740961423699,1.06,622.69,621.45,0.32182798]
[1740961423700,0.29556931,622.65,621.45,0.32182798]
[1740961423904,0.29556931,622.64,621.45,0.32182798]
[1740961424104,0.29556931,622.63,621.45,0.32182798]
[1740961424299,0.29556931,622.62,621.45,0.32182798]
[1740961424499,0.29556931,622.61,621.45,0.32182798]
[1740961424705,0.29556931,622.6,621.45,0.32182798]
[1740961424902,0.29556931,622.59,621.45,0.32182798]
[1740961425106,0.29556931,622.58,621.45,0.32182798]
[1740961425406,0.29556931,622.57,621.45,0.32182798]
[1740961425606,0.29556931,622.56,621.45,0.32182798]
[1740961425809,0.29558003,622.55,621.45,0.32182798]
[1740961426007,0.29558003,622.68,621.45,0.32182798]
[1740961429003,0.29558003,622.67,621.45,0.32182798]
[1740961429207,0.29558003,622.66,621.45,0.32182798]
[1740961429502,0.29558003,622.65,621.45,0.32182798]
[1740961429708,0.61679292,622.64,621.45,0.32182798]
[1740961429905,0.29558003,622.63,621.45,0.32182798]
[1740961430106,0.29558003,622.62,621.45,0.32182798]
[1740961430300,0.29558003,622.61,621.45,0.32182798]
[1740961430501,0.29558003,622.6,621.45,0.32182798]
[1740961430706,0.29558003,622.59,621.45,0.32182798]
[1740961431005,0.29558003,622.58,621.45,0.32182798]
[1740961431205,0.29558003,622.57,621.45,0.32182798]
[1740961431406,0.29558003,622.56,621.45,0.32182798]
[1740961431604,0.29558003,622.55,621.45,0.32182798]
[1740961431806,0.29558003,622.54,621.45,0.32182798]
[1740961432009,0.29558003,622.53,621.45,0.32182798]
[1740961432202,1.034,622.58,621.45,0.32182798]
[1740961432407,0.29562217,622.57,621.45,0.32182798]
[1740961432607,0.29562217,622.56,621.45,0.32182798]
[1740961432808,0.29562217,622.55,621.45,0.32182798]
[1740961433008,0.29562217,622.54,621.45,0.32182798]
[1740961433207,0.29562217,622.53,621.45,0.32182798]
[1740961433407,0.29562217,622.52,621.45,0.32182798]
[1740961433606,0.29562217,622.51,621.45,0.32182798]
[1740961433804,0.29562217,622.5,621.45,0.32182798]
[1740961434005,0.29562217,622.49,621.45,0.32182798]
[1740961434310,0.29562217,622.48,621.45,0.32182798]
[1740961434509,0.29562217,622.47,621.45,0.32182798]
[1740961434708,0.29562217,622.46,621.45,0.32182798]
[1740961434910,0.29562217,622.48,621.45,0.32182798]
[1740961435111,0.29562217,622.47,621.45,0.32182798]
[1740961435412,0.29562217,622.46,621.45,0.32182798]
[1740961435609,0.29562217,622.45,621.45,0.32182798]
[1740961435912,0.29562217,622.44,621.45,0.32182798]
[1740961436113,0.29562217,622.48,621.45,0.32182798]
[1740961436312,0.29562217,622.47,621.45,0.32182798]
[1740961436512,0.29562217,622.46,621.45,0.32182798]
[1740961436713,0.29562217,622.45,621.45,0.32182798]
[1740961436909,0.29562217,622.44,621.45,0.32182798]
[1740961437109,0.29562217,622.48,621.45,0.32182798]
[1740961437315,0.29562217,622.47,621.45,0.32182798]
[1740961437514,0.29562217,622.48,621.45,0.32182798]
[1740961437709,0.29562217,622.47,621.45,0.32182798]
[1740961437915,1.061,622.47,621.45,0.32182798]
[1740961438111,0.29562217,622.46,621.45,0.32182798]
[1740961438514,1.603,622.45,621.45,0.32182798]
[1740961438711,0.29562217,622.44,621.45,0.32182798]
[1740961443416,1.603,622.45,621.45,0.32182798]
[1740961443617,0.29550552,622.44,621.45,0.32182798]
[1740961444630,0.50050552,622.44,621.45,0.32182798]
[1740961444826,0.29550552,622.43,621.45,0.32182798]
[1740961446924,0.2955376,622.42,621.45,0.32182798]
[1740961447127,0.2955376,622.41,621.45,0.32182798]
[1740961447427,0.2955376,622.4,621.45,0.32182798]
[1740961447631,0.2955376,622.43,621.45,0.32182798]
[1740961448227,0.2955376,622.42,621.45,0.32182798]
[1740961448432,0.2955376,622.41,621.45,0.32182798]
[1740961448628,0.2955376,622.4,621.45,0.32182798]
[1740961448828,0.2955376,622.43,621.45,0.32182798]
[1740961449030,0.2955376,622.42,621.45,0.32182798]
[1740961449229,0.2955376,622.41,621.45,0.32182798]
[1740961449428,0.2955376,622.43,621.45,0.32182798]
[1740961455434,0.29558081,622.42,621.45,0.32182798]
[1740961455627,0.29558081,622.43,621.45,0.32182798]
[1740961455832,0.29558081,622.42,621.45,0.32182798]
[1740961456135,0.29558081,622.41,621.45,0.32182798]
[1740961456433,1.52358081,622.41,621.45,0.32182798]
[1740961456634,0.29558081,622.4,621.45,0.32182798]
[1740961459834,0.205,622.39,621.45,0.32182798]
[1740961460036,0.29558081,622.38,621.45,0.32182798]
[1740961462734,1.53,622.37,621.45,0.32182798]
[1740961462939,0.29558081,622.36,621.45,0.32182798]
[1740961463738,1.274,622.35,621.45,0.32182798]
[1740961464035,0.29558081,622.34,621.45,0.32182798]
[1740961473852,0.2956477,622.33,621.45,0.32182798]
[1740961474054,0.2956477,622.34,621.45,0.32182798]
[1740961474256,0.2956477,622.33,621.45,0.32182798]
[1740961474456,0.2956477,622.34,621.45,0.32182798]
[1740961474853,1.056,622.33,621.45,0.32182798]
[1740961475060,0.2956477,622.32,621.45,0.32182798]
[1740961476658,1.7096477,622.32,621.45,0.32182798]
[1740961476858,0.2956477,622.31,621.45,0.32182798]
[1740961482166,0.29563951,622.3,621.45,0.32182798]
[1740961482355,0.29563951,622.29,621.45,0.32182798]
[1740961482665,0.29563951,622.28,621.45,0.32182798]
[1740961482858,0.29563951,622.27,621.45,0.32182798]
[1740961483061,0.29563951,622.31,621.45,0.32182798]
[1740961483261,0.29563951,622.3,621.45,0.32182798]
[1740961483458,0.29563951,622.31,621.45,0.32182798]
[1740961483660,0.29563951,622.3,621.45,0.32182798]
[1740961483860,0.29563951,622.31,621.45,0.32182798]
[1740961484061,0.29563951,622.3,621.45,0.32182798]
[1740961484261,0.29563951,622.29,621.45,0.32182798]
[1740961484461,0.29563951,622.31,621.45,0.32182798]
[1740961484662,1.414,622.32,621.45,0.32182798]
[1740961484663,0.29563951,622.3,621.45,0.32182798]
[1740961484858,0.29563951,622.31,621.45,0.32182798]
[1740961485063,0.29563951,622.3,621.45,0.32182798]
[1740961485363,0.29563951,622.29,621.45,0.32182798]
[1740961485563,0.29563951,622.31,621.45,0.32182798]
[1740961485764,0.29563951,622.3,621.45,0.32182798]
[1740961485962,0.29563951,622.31,621.45,0.32182798]
[1740961486158,0.29563951,622.3,621.45,0.32182798]
[1740961486463,0.29563951,622.29,621.45,0.32182798]
[1740961486658,0.29563951,622.31,621.45,0.32182798]
[1740961486861,0.29563951,622.3,621.45,0.32182798]
[1740961487064,1.371,622.3,621.45,0.32182798]
[1740961487265,0.29563951,622.29,621.45,0.32182798]
[1740961488161,1.266,622.28,621.45,0.32182798]
[1740961488465,0.29563951,622.27,621.45,0.32182798]
[1740961489965,1.015,622.26,621.45,0.32182798]
[1740961491266,0.29555316,622.25,621.45,0.32182798]
[1740961491466,1.015,622.26,621.45,0.32182798]
[1740961491667,0.29554913,622.25,621.45,0.32182798]
[1740961492061,0.29555371,622.24,621.45,0.32182798]
[1740961492265,0.29554886,622.25,621.45,0.32182798]
[1740961492465,1.015,622.26,621.45,0.32182798]
[1740961500070,1.038,622.25,621.45,0.32182798]
[1740961501266,1.67976638,622.24,621.45,0.32182798]
[1740961501865,0.29556291,622.23,621.45,0.32182798]
[1740961502872,1.67976638,622.24,621.45,0.32182798]
[1740961503976,0.958,622.23,621.45,0.32182798]
[1740961511377,1.497,622.22,621.45,0.32182798]
[1740961515279,1.002,622.21,621.45,0.32182798]
[1740961516280,0.943,622.2,621.45,0.32182798]
[1740961516574,1.148,622.2,621.45,0.32182798]
[1740961520384,2.206,622.2,621.45,0.32182798]
[1740961526889,3.468,622.2,621.45,0.32182798]
[1740961530389,5.027,622.2,621.45,0.32182798]
[1740961539494,5.992,622.2,621.45,0.32182798]
[1740961565021,5.992,622.2,621.48,1.189564]
[1740961565522,5.992,622.2,621.49,0.32180726]
[1740961617853,5.992,622.2,621.32,1.189564]
[1740961619255,5.992,622.2,621.27,1.189564]
[1740961620954,5.992,622.2,621.18,1.189564]
[1740961623656,5.992,622.2,621.08,1.189564]
[1740961623657,5.992,622.2,620.95,1.189564]
[1740961626356,5.992,622.2,621.02,1.189564]
[1740961628758,5.992,622.2,620.64,2.68119532]
[1740961628759,5.992,622.2,621.25,1.189564]
[1740961630483,5.992,622.2,621.23,1.189564]
[1740961632766,5.992,622.2,621.15,1.189564]
[1740961636369,5.992,622.2,620.85,2.67924361]
[1740961636370,5.992,622.2,621.27,1.189564]
[1740961638567,5.992,622.2,621.29,1.189564]
[1740961641373,5.992,622.2,621.19,1.189564]
[1740961643984,5.992,622.2,621.16,1.189564]
[1740961645986,5.992,622.2,621.13,1.189564]
[1740961648984,5.992,622.2,621.31,1.189564]
[1740961649282,5.992,622.2,621.33,0.32189013]
[1740961655990,5.992,622.2,621.46,1.189564]
[1740961656191,5.992,622.2,621.47,0.32181762]
[1740961669501,5.992,622.2,621.54,1.189564]
[1740961669706,5.992,622.2,621.55,0.3217762]
[1740961672002,5.992,622.2,621.6,1.189564]
[1740961672308,5.992,622.2,621.61,0.32174514]
[1740961674402,5.992,622.2,621.69,1.189564]
[1740961674601,5.992,622.2,621.7,0.32169856]
[1740961674806,0.66922259,623.81,621.7,0.32169856]
[1740961675007,0.32062072,623.79,621.7,0.32169856]
[1740961675207,0.29510317,623.78,621.7,0.32169856]
[1740961675408,0.61573417,623.77,621.7,0.32169856]
[1740961675609,0.29510317,623.76,621.7,0.32169856]
[1740961675809,0.32064128,623.75,621.7,0.32169856]
[1740961676010,1.4250189,623.69,621.7,0.32169856]
[1740961676210,0.29509981,623.68,621.7,0.32169856]
[1740961676410,0.29509981,623.67,621.7,0.32169856]
[1740961676705,0.29509981,623.66,621.7,0.32169856]
[1740961677009,0.29509981,623.65,621.7,0.32169856]
[1740961677212,0.29509981,623.64,621.7,0.32169856]
[1740961677412,0.29509981,623.63,621.7,0.32169856]
[1740961677609,0.29509981,623.68,621.7,0.32169856]
[1740961677817,2.026,623.62,621.7,1.51126256]
[1740961678111,0.29509981,623.61,621.7,1.51126256]
[1740961678314,0.29509981,623.6,621.7,1.51126256]
[1740961678516,0.29509981,623.59,621.7,1.51126256]
[1740961678709,0.6158285,623.58,621.7,1.51126256]
[1740961678908,0.61583364,623.57,621.7,1.51126256]
[1740961679105,0.32073898,623.56,621.7,1.51126256]
[1740961679311,0.29510944,623.55,621.7,1.51126256]
[1740961679612,0.29510944,623.54,621.7,1.51126256]
[1740961679908,0.29510944,623.53,621.7,1.51126256]
[1740961680107,0.29510944,623.52,621.71,1.189564]
[1740961680311,0.29510944,623.51,621.71,1.189564]
[1740961680508,0.29510944,623.55,621.71,1.189564]
[1740961680707,0.61585871,623.54,621.73,0.32168304]
[1740961680912,0.29510944,623.53,621.73,0.32168304]
[1740961681114,0.29510944,623.52,621.73,0.32168304]
[1740961682011,0.29510944,623.52,621.77,1.189564]
[1740961682215,0.29510944,623.51,621.77,1.189564]
[1740961682515,0.29510944,623.5,621.77,1.189564]
[1740961682809,0.29510944,623.49,621.79,0.321652]
[1740961683012,0.29510944,623.52,621.79,0.321652]
[1740961683216,0.29510944,623.51,621.79,0.321652]
[1740961683410,0.29510944,623.5,621.79,0.321652]
[1740961683614,0.29510944,623.49,621.79,0.321652]
[1740961683813,0.29510944,623.48,621.79,0.321652]
[1740961684017,0.29510944,623.47,621.8,1.189564]
[1740961684317,0.29510944,623.46,621.8,1.189564]
[1740961684509,0.29510944,623.45,621.8,1.189564]
[1740961684714,0.29510944,623.44,621.8,1.189564]
[1740961684911,0.29510944,623.43,621.8,1.189564]
[1740961685117,0.29510944,623.52,621.8,1.189564]
[1740961685314,0.61587414,623.51,621.82,0.32163648]
[1740961685519,0.61587928,623.5,621.82,0.32163648]
[1740961685719,0.61588443,623.49,621.82,0.32163648]
[1740961685915,0.61588957,623.48,621.82,0.32163648]
[1740961686121,0.61589472,623.47,621.82,0.32163648]
[1740961686322,0.61589986,623.46,621.82,0.32163648]
[1740961686523,0.29510944,623.45,621.82,0.32163648]
[1740961686914,0.32080071,623.44,621.82,0.32163648]
[1740961687120,0.29510944,623.43,621.82,0.32163648]
[1740961687316,0.29510944,623.42,621.82,0.32163648]
[1740961687513,0.29510944,623.41,621.82,0.32163648]
[1740961687718,0.29510944,623.4,621.82,0.32163648]
[1740961687915,0.32080071,623.44,621.82,0.32163648]
[1740961687916,0.32083159,623.38,621.82,0.32163648]
[1740961688118,0.29510944,623.37,621.82,0.32163648]
[1740961688321,0.32084703,623.35,621.82,0.32163648]
[1740961688723,0.29533668,623.34,621.82,0.32163648]
[1740961689022,0.29533668,623.33,621.82,0.32163648]
[1740961689225,0.29533668,623.32,621.82,0.32163648]
[1740961689425,0.29533668,623.31,621.82,0.32163648]
[1740961689623,0.29533668,623.3,621.82,0.32163648]
[1740961689823,0.29533668,623.29,621.82,0.32163648]
[1740961690123,0.29533668,623.28,621.82,0.32163648]
[1740961690325,0.29533668,623.27,621.82,0.32163648]
[1740961690624,0.29533668,623.26,621.82,0.32163648]
[1740961690827,0.29533668,623.25,621.47,1.189564]
[1740961691030,0.29533668,623.44,621.47,1.189564]
[1740961691230,0.29533668,623.43,621.47,1.189564]
[1740961691525,0.29533668,623.42,621.18,1.42055564]
[1740961691726,0.29533668,623.41,621.05,1.189564]
[1740961691930,0.29533668,623.4,621.05,1.189564]
[1740961692230,0.29533668,623.39,621.05,1.189564]
[1740961692530,0.29533668,623.38,621.05,1.189564]
[1740961692729,1.4250189,623.52,621.05,1.189564]
[1740961692730,0.29533668,623.37,621.05,1.189564]
[1740961692927,0.29533668,623.36,621.05,1.189564]
[1740961693125,0.29533668,623.35,621.05,1.189564]
[1740961693329,0.29533668,623.34,621.05,1.189564]
[1740961693531,0.29533668,623.33,621.05,1.189564]
[1740961693733,0.29533668,623.32,621.05,1.189564]
[1740961693935,0.29533668,623.31,621.05,1.189564]
[1740961694133,0.29533668,623.3,620.76,1.189564]
[1740961694334,0.29533668,623.29,620.76,1.189564]
[1740961694533,0.29533668,623.28,620.76,1.189564]
[1740961694725,0.92,623.53,620.76,1.189564]
[1740961694726,0.29533668,623.27,620.76,1.189564]
[1740961694930,0.29533668,623.26,620.76,1.189564]
[1740961695130,0.29535987,623.25,620.76,1.189564]
[1740961696138,0.29535987,623.25,620.81,1.189564]
[1740961696538,0.29535987,623.24,620.81,1.189564]
[1740961696734,0.29536909,623.23,620.81,1.189564]
[1740961696934,0.29536909,623.22,620.81,1.189564]
[1740961697136,0.29536909,623.21,620.81,1.189564]
[1740961697439,0.29536909,623.2,620.81,1.189564]
[1740961697639,0.29536909,623.19,620.81,1.189564]
[1740961697839,0.29536909,623.18,620.81,1.189564]
[1740961698037,0.958,623.26,620.81,1.189564]
[1740961698234,0.29542682,623.25,620.81,1.189564]
[1740961698434,0.29542682,623.24,620.81,1.189564]
[1740961698634,0.29542682,623.23,620.81,1.189564]
[1740961698838,0.29542682,623.22,620.66,1.189564]
[1740961699040,0.29542682,623.21,620.66,1.189564]
[1740961699240,0.29542682,623.25,620.66,1.189564]
[1740961699441,0.29542682,623.24,620.66,1.189564]
[1740961699637,0.29542682,623.25,620.66,1.189564]
[1740961699833,0.29542682,623.24,620.66,1.189564]
[1740961700037,1.051,623.24,620.66,1.189564]
[1740961700237,0.29542682,623.23,620.66,1.189564]
[1740961700641,0.29542682,623.23,620.41,1.189564]
[1740961703141,0.205,623.22,620.41,1.189564]
[1740961703440,0.29542682,623.21,620.41,1.189564]
[1740961704136,1.06,623.2,620.37,1.189564]
[1740961704336,0.29542682,623.19,620.37,1.189564]
[1740961706543,0.29542682,623.19,620.44,1.189564]
[1740961708045,0.29542682,623.19,620.46,1.189564]
[1740961708046,1.51542682,623.19,620.46,1.189564]
[1740961708244,0.29542682,623.18,620.46,1.189564]
[1740961710449,1.028,623.17,620.46,1.189564]
[1740961710746,1.028,623.17,620.59,0.32227396]
[1740961710747,0.61637168,623.16,620.59,0.32227396]
[1740961710950,0.61637683,623.15,620.59,0.32227396]
[1740961711241,0.29542682,623.14,620.59,0.32227396]
[1740961712639,0.32096031,623.13,620.59,0.32227396]
[1740961712845,0.29542682,623.12,620.59,0.32227396]
[1740961713247,0.29542682,623.12,620.73,1.189564]
[1740961713444,0.32096031,623.13,620.73,1.189564]
[1740961713648,0.29529315,623.12,620.73,1.189564]
[1740961716248,1.171,623.11,620.73,1.189564]
[1740961716547,0.29529315,623.1,620.73,1.189564]
[1740961717142,0.29529315,623.1,620.94,1.189564]
[1740961718243,0.29529315,623.1,621.04,0.32204044]
[1740961721746,1.171,623.11,621.04,0.32204044]
[1740961722048,0.29526266,623.1,621.04,0.32204044]
[1740961722551,0.29526266,623.1,621.09,1.189564]
[1740961722849,0.29526266,623.1,621.19,0.32196268]
[1740961723447,0.916,623.09,621.19,0.32196268]
[1740961723647,0.29526266,623.08,621.19,0.32196268]
[1740961724252,0.29526266,623.08,621.23,1.189564]
[1740961724552,0.29526266,623.08,621.25,0.32193158]
[1740961724947,0.916,623.09,621.25,0.32193158]
[1740961725152,0.29525746,623.08,621.25,0.32193158]
[1740961725352,0.50025746,623.08,621.25,0.32193158]
[1740961725547,0.29525746,623.07,621.25,0.32193158]
[1740961725746,0.29525746,623.07,621.35,1.189564]
[1740961725950,0.29525746,623.07,621.37,0.32186941]
[1740961728255,0.205,623.08,621.37,0.32186941]
[1740961728455,0.29524459,623.07,621.37,0.32186941]
[1740961729754,0.205,623.08,621.37,0.32186941]
[1740961729948,0.29519007,623.07,621.37,0.32186941]
[1740961730859,0.29519007,623.07,621.51,1.189564]
[1740961731058,0.29519007,623.07,621.53,0.32178655]
[1740961731360,1.052,623.07,621.53,0.32178655]
[1740961731561,0.2952017,623.06,621.53,0.32178655]
[1740961733061,0.29523404,623.05,621.53,0.32178655]
[1740961733361,0.29523404,623.04,621.53,0.32178655]
[1740961733557,0.29523404,623.06,621.53,0.32178655]
[1740961733859,0.29523404,623.05,621.53,0.32178655]
[1740961734061,0.29523404,623.04,621.53,0.32178655]
[1740961734261,0.29523404,623.03,621.53,0.32178655]
[1740961734463,0.29523404,623.02,621.53,0.32178655]
[1740961734662,0.29523404,623.06,621.53,0.32178655]
[1740961735462,1.356,623.05,621.53,0.32178655]
[1740961735659,0.29523404,623.04,621.53,0.32178655]
[1740961736155,1.356,623.05,621.53,0.32178655]
[1740961736360,0.29525452,623.04,621.53,0.32178655]
[1740961739587,1.356,623.05,621.53,0.32178655]
[1740961739798,0.29525849,623.04,621.53,0.32178655]
[1740961740396,1.022,623.03,621.53,0.32178655]
[1740961740595,0.29525849,623.02,621.53,0.32178655]
[1740961740792,0.50025849,623.02,621.53,0.32178655]
[1740961740999,0.29525849,623.01,621.53,0.32178655]
[1740961742901,0.931,623.0,621.53,0.32178655]
[1740961743197,0.29525849,622.99,621.53,0.32178655]
[1740961743501,0.931,623.0,621.53,0.32178655]
[1740961747297,0.931,623.0,621.53,1.51135055]
[1740961748695,1.169,622.99,621.53,1.51135055]
[1740961750000,1.169,622.99,621.62,1.189564]
[1740961753001,1.169,622.99,621.56,1.189564]
[1740961755301,1.169,622.99,621.63,1.189564]
[1740961757406,1.169,622.99,621.61,1.189564]
[1740961759500,1.281,622.98,621.61,1.189564]
[1740961760403,1.281,622.98,621.65,1.189564]
[1740961762093,1.281,622.98,621.53,0.32178655]
[1740961763475,0.29524832,622.97,621.53,0.32178655]
[1740961764572,1.056,622.96,621.53,0.32178655]
[1740961764781,0.29524832,622.95,621.53,0.32178655]
[1740961765079,0.29524793,622.94,621.53,0.32178655]
[1740961767572,1.20424793,622.94,621.53,0.32178655]
[1740961767779,0.29524793,622.93,621.53,0.32178655]
[1740961769380,1.118,622.94,621.53,0.32178655]
[1740961771180,2.06,622.94,621.53,0.32178655]
[1740961776600,0.29523708,622.93,621.53,0.32178655]
[1740961777785,2.06,622.94,621.53,0.32178655]
[1740961780186,0.29528639,622.93,621.53,0.32178655]
[1740961781188,0.913,622.92,621.53,0.32178655]
[1740961782687,1.1872772,622.91,621.53,0.32178655]
[1740961782886,0.892,622.91,621.53,0.32178655]
[1740961783690,1.36,622.9,621.53,0.32178655]
[1740961785590,0.982,622.89,621.53,0.32178655]
[1740961787689,0.29527692,622.88,621.53,0.32178655]
[1740961789492,1.184,622.87,621.53,0.32178655]
[1740961795496,0.29525288,622.86,621.53,0.32178655]